{"text_format":"3","workbook":"xlsx","n_sheets":4,"sheets":["допущенные","табл.1 МОиН РТ","по нормативам отдельно","программа по зап.1 и 2 табл"],"read":"whole","date_system":"1900"}

{"sheet":"допущенные","index":0,"n_rows":16,"n_cols":23,"rows_kept":16,"merged":[[0,0,2,0],[0,1,0,11],[0,12,0,22],[1,1,2,1],[1,2,1,3],[1,4,1,5],[1,6,1,7],[1,8,1,9],[1,10,1,11],[1,12,2,12],[1,13,1,14],[1,15,1,16],[1,17,1,18],[1,19,1,20],[1,21,1,22]]}
["ОУ","Кол-во учащихся  по ОШ1",{"$nulls":10},"Кол-во учащихся допущенных к сдаче ГТО"]
[null,"всего","6-8 лет",null,"9-10 лет",null,"11-12 лет",null,"13-15 лет",null,"16-17 лет",null,"всего","6-8 лет",null,"9-10 лет",null,"11-12 лет",null,"13-15 лет",null,"16-17 лет"]
[null,null,"М","Д","М","Д","М","Д","М","Д","М","Д",null,"М","Д","М","Д","М","Д","М","Д","М","Д"]
["СОШ 124",419,42,54,46,36,47,42,63,58,14,17,298,30,33,38,29,34,29,44,40,8,13]
{"$rows_empty":11}
[{"$nulls":16},"ё"]

{"sheet":"табл.1 МОиН РТ","index":1,"n_rows":5,"n_cols":23,"rows_kept":5,"merged":[[1,0,3,0],[1,1,3,1],[1,2,1,4],[1,5,1,7],[1,8,1,16],[1,17,1,19],[1,20,1,22],[2,2,3,2],[2,3,3,3],[2,4,3,4],[2,5,3,5],[2,6,3,6],[2,7,3,7],[2,8,2,10],[2,11,2,13],[2,14,2,16],[2,17,3,17],[2,18,3,18],[2,19,3,19],[2,20,3,20],[2,21,3,21],[2,22,3,22]]}
[]
["ОУ","Приступило ОУ к сдаче норм ГТО (да-1, нет-0)","Кол-во учащихся основной группы по физической культуре, допущенных к сдаче норм ГТО",null,null,"Кол-во обучающихся основной группы по физической культуре, приступивших к сдаче нормативов",null,null,"Кол-во учащихся основной группы по физической культуре, справившихся с выполнением нормативов в полном объеме",{"$nulls":8},"Кол-во учащихся основной группы по физической культуре, справившихся с выполнением нормативов не в полном объеме",null,null,"Кол-во учащихся основной группы по физической культуре, не справившихся с выполнением нормативов "]
[null,null,"всего","М","Д","всего","М","Д","Бронзовый уровень",null,null,"Серебряный уровень",null,null,"Золотой уровень",null,null,"всего","М","Д","всего","М","Д"]
[{"$nulls":8},"всего","М","Д","всего","М","Д","всего","М","Д"]
["СОШ124",1,298,154,144,276,145,131,44,25,19,142,72,70,71,38,33,12,5,7,7,3,4]

{"sheet":"по нормативам отдельно","index":2,"n_rows":30,"n_cols":15,"rows_kept":30,"merged":[[0,0,1,0],[0,1,1,1],[0,2,1,2],[0,3,0,5],[0,6,0,8],[0,9,0,11],[0,12,0,14],[2,0,29,0],[2,2,6,2],[7,2,11,2],[12,2,17,2],[18,2,23,2],[24,2,29,2]]}
["ОУ","Наименование норматива","Ступень (возраст детей)","Кол-во обучающихся основной группы по физической культуре, приступивших к сдаче норматива",null,null,"Кол-во учащихся основной группы по физической культуре, справившихся с выполнением нормативов в полном объеме",null,null,"Кол-во учащихся основной группы по физической культуре, справившихся с выполнением нормативов не в полном объеме",null,null,"Кол-во учащихся основной группы по физической культуре, не справившихся с выполнением нормативов "]
[{"$nulls":3},"всего","М","Д","всего","М","Д","всего","М","Д","всего","М","Д"]
[null,"бег на 60м (с)","6-8 лет",60,29,31,32,15,17,25,13,12,3,1,2]
[null,"Бег на 1 км. (мин, с)",null,60,29,31,35,17,18,21,6,15,4,2,2]
[null,"Прыжок в длину с разбега (см)",null,{"$f":"E5+F5","v":0},null,null,{"$f":"H5+I5","v":0},null,null,{"$f":"K5+L5","v":0},null,null,{"$f":"N5+O5","v":0}]
[null,"Или прыжок в длину с места толчком двумя ногами (см)",null,60,29,31,32,15,17,25,13,12,3,1,2]
[null,"Плавание без учета времени(м)",null,0,null,null,0,null,null,0,null,null,0]
[null,"бег на 60м (с)","9-10 лет",64,36,28,34,19,15,27,16,11,3,1,2]
[null,"Бег на 1 км. (мин, с)",null,64,36,28,32,17,15,26,15,11,6,4,2]
[null,"Прыжок в длину с разбега (см)",null,0,null,null,0,null,null,0,null,null,0]
[null,"Или прыжок в длину с места толчком двумя ногами (см)",null,64,36,28,34,19,15,27,16,11,3,1,2]
[null,"Плавание без учета времени(м)",null,0,null,null,0,null,null,0,null,null,0]
[null,"бег на 60м (с)","11-12 лет",56,33,23,31,18,13,19,12,7,6,3,3]
[null,"Бег на 1,5 км. (мин, с)",null,56,33,23,30,17,13,19,11,8,7,5,2]
[null,"Или на 2 км (мин,с)",null,0,null,null,0,null,null,0,null,null,0]
[null,"Прыжок в длину с разбега (см)",null,0,null,null,0,null,null,0,null,null,0]
[null,"Или прыжок в длину с места толчком двумя ногами (см)",null,56,33,23,33,18,15,20,12,8,3,3,0]
[null,"Плавание 50 м (мин,с)",null,0,null,null,0,null,null,0,null,null,0]
[null,"бег на 60м (с)","13-15 лет",76,40,36,43,25,18,25,13,12,8,2,6]
[null,"Бег на 2 км. (мин, с)",null,76,40,36,45,26,19,23,12,11,8,2,6]
[null,"Или на 3 км (мин,с) девочки нет",null,0,null,null,0,null,null,0,null,null,0]
[null,"Прыжок в длину с разбега (см)",null,0,null,null,0,null,null,0,null,null,0]
[null,"Или прыжок в длину с места толчком двумя ногами (см)",null,76,40,36,43,25,18,27,14,13,6,1,5]
[null,"Плавание 50 м (мин,с)",null,0,null,null,0,null,null,0,null,null,0]
[null,"бег на 100м (с)","16-17 лет",20,7,13,14,4,10,4,2,2,2,1,1]
[null,"Бег на 2 км. (мин, с)",null,20,7,13,12,4,8,4,2,2,4,1,3]
[null,"Или на 3 км (мин,с) девочки нет",null,0,null,null,0,null,null,0,null,null,0]
[null,"Прыжок в длину с разбега (см)",null,0,null,null,0,null,null,0,null,null,0]
[null,"Или прыжок в длину с места толчком двумя ногами (см)",null,20,7,13,14,5,9,4,2,2,2,0,2]
[null,"Плавание 50 м (мин,с)",null,0,null,null,0,null,null,0,null,null,0]

{"sheet":"программа по зап.1 и 2 табл","index":3,"n_rows":9,"n_cols":54,"rows_kept":9,"merged":[[0,0,2,0],[0,1,0,21],[0,22,0,32],[0,33,0,35],[0,36,0,38],[0,39,0,47],[0,48,0,50],[0,51,0,53],[1,1,2,1],[1,2,1,5],[1,6,1,9],[1,10,1,13],[1,14,1,17],[1,18,1,21],[1,22,2,22],[1,23,1,24],[1,25,1,26],[1,27,1,28],[1,29,1,30],[1,31,1,32],[1,33,2,33],[1,34,2,34],[1,35,2,35],[1,36,2,36],[1,37,2,37],[1,38,2,38],[1,39,1,41],[1,42,1,44],[1,45,1,47],[1,48,2,48],[1,49,2,49],[1,50,2,50],[1,51,2,51],[1,52,2,52],[1,53,2,53],[2,4,2,5],[2,8,2,9],[2,12,2,13],[2,16,2,17],[2,20,2,21],[6,2,6,13]]}
["ОУ","Кол-во учащихся  по ОШ1",{"$nulls":20},"Кол-во учащихся допущенных к сдаче ГТО",{"$nulls":10},"Кол-во учащихся основной группы по физической культуре, допущенных к сдаче норм ГТО",null,null,"Кол-во обучающихся основной группы по физической культуре, приступивших к сдаче нормативов",null,null,"Кол-во учащихся основной группы по физической культуре, справившихся с выполнением нормативов в полном объеме",{"$nulls":8},"Кол-во учащихся основной группы по физической культуре, справившихся с выполнением нормативов не в полном объеме",null,null,"Кол-во учащихся основной группы по физической культуре, не справившихся с выполнением нормативов "]
[null,"всего","6-8 лет",{"$nulls":3},"9-10 лет",{"$nulls":3},"11-12 лет",{"$nulls":3},"13-15 лет",{"$nulls":3},"16-17 лет",{"$nulls":3},"всего","6-8 лет",null,"9-10 лет",null,"11-12 лет",null,"13-15 лет",null,"16-17 лет",null,"всего","М","Д","всего","М","Д","Бронзовый уровень",null,null,"Серебряный уровень",null,null,"Золотой уровень",null,null,"всего","М","Д","всего","М","Д"]
[null,null,"М","Д","проверка",null,"М","Д","проверка",null,"М","Д","проверка",null,"М","Д","проверка",null,"М","Д","проверка",null,null,"М","Д","М","Д","М","Д","М","Д","М","Д",{"$nulls":6},"всего","М","Д","всего","М","Д","всего","М","Д"]
[null,419,42,54,{"$f":"C4+D4","v":96},{"$f":"X4+Y4","v":63},46,36,{"$f":"G4+H4","v":82},{"$f":"AB4+AC4","v":63},47,42,{"$f":"K4+L4","v":89},{"$f":"AF4+AG4","v":21},63,58,{"$f":"O4+P4","v":121},{"$f":"AJ4+AK4","v":420},14,17,{"$f":"S4+T4","v":31},{"$f":"AN4+AO4","v":69},298,30,33,38,29,34,29,44,40,8,13,{"$f":"AI4+AJ4","v":298},{"$f":"X4+Z4+AB4+AD4+AF4","v":154},{"$f":"Y4+AA4+AC4+AE4+AG4","v":144},276,145,131,44,25,19,142,72,70,71,38,33,12,5,7,7,3,4]
[]
[]
[null,null," - незаполняем, машина считает сама"]
[]
[null,null," - проверки, рядом стоящие столбцы д.б. одмнаковы, если разные, значит ошибки"]